Cogmind - Beta 14 @@@ ROGUE MODE // 2025.01.08 @ 11:29:01 Player: sentrybuster Result: Self-destructed Performance ------------- Evolutions (1) 500 Regions Visited (2) 400 Robots Destroyed (34) 170 Value Destroyed (691) 691 Prototype IDs (0) 0 Alien Tech Used (0) 0 Bonus (0) 0 TOTAL SCORE: 1761 Bonus ------- None Cogmind --------- Core Integrity 294/400 Matter 208/300 Energy 250/250 System Corruption 0% Temperature Cool (0) Movement Rolling (100) Location -9/Materials Parts ------- > --- POWER (1) -------- Ion Engine > --- PROPULSION (3) --- Light Treads Light Treads Compact Wheel > --- UTILITY (3) ------ Small Storage Unit Seismic Detector Targeting Computer > --- WEAPON (2) ------- Assault Rifle Assault Rifle > --- INVENTORY (8) ---- Ion Engine Aluminum Leg Aluminum Leg Medium Matter Pod (30) Large Matter Pod (0) Light Armor Plating Light Assault Rifle Heavy Assault Rifle Peak State ------------ > --- POWER ------------ Ion Engine > --- PROPULSION ------- Light Treads Light Treads Compact Wheel > --- UTILITY ---------- Small Storage Unit Seismic Detector Targeting Computer > --- WEAPON ----------- Assault Rifle Assault Rifle > --- INVENTORY -------- Ion Engine Aluminum Leg Aluminum Leg Medium Matter Pod Large Matter Pod Light Armor Plating [Rating: 9] Favorites ----------- Power Ion Engine Engine Ion Engine Propulsion Aluminum Leg Treads Light Treads Leg Aluminum Leg Wheel Compact Wheel Utility Small Storage Unit Device Seismic Detector Storage Small Storage Unit Processor Targeting Computer Weapon Assault Rifle Ballistic Gun Assault Rifle Build | -11 -10 -9 ------- Run | Yrd Mat Mat Slots Evolved 2 | . . 2 Power . | . . . Propulsion 1 | . . 1 Utility 1 | . . 1 Weapon . | . . . Parts Attached 18 | 8 4 6 Power 3 | 1 . 2 Engine 3 | 1 . 2 Core . | . . . Reactor . | . . . Propulsion 8 | 3 4 1 Treads 2 | . 1 1 Leg 3 | 2 1 . Wheel 3 | 1 2 . Hover . | . . . Flight . | . . . Utility 3 | 2 . 1 Device 1 | 1 . . Storage 1 | 1 . . Processor 1 | . . 1 Hackware . | . . . Protection . | . . . Artifact . | . . . Weapon 4 | 2 . 2 Energy Gun . | . . . Energy Cannon . | . . . Ballistic Gun 4 | 2 . 2 Ballistic Cannon . | . . . Launcher . | . . . Special Weapon . | . . . Impact Weapon . | . . . Slashing Weapon . | . . . Piercing Weapon . | . . . Special Melee Weapon . | . . . Unidentified Prototypes . | . . . Parts Lost 4 | . 2 2 Power 2 | . . 2 Propulsion 2 | . 2 . Utility . | . . . Weapon . | . . . Highest Loss Streak 1 | . 1 1 To Critical Strikes . | . . . Average Slot Usage (%) 97 | . 97 98 Engine 12 | . 14 10 Treads 9 | . 4 22 Leg 12 | . 17 . Wheel 6 | . 4 11 Device 13 | . 14 11 Storage 13 | . 14 11 Processor 3 | . . 11 Ballistic Gun 26 | . 28 21 Peak Build Rating 9 | 7 7 9 Average Rating 7 | 5 6 8 On Entrance 4 | . 7 7 Naked Turns . | . . . Heaviest Build 15 | 15 15 15 Greatest Support 20 | 20 20 16 Greatest Overweight (x) 1 | 1 1 . Average Overweight (x) . | . . . Largest Inventory Capacity 8 | 8 8 8 Average Capacity 7 | 7 8 8 Most Carried 8 | 6 8 8 Average Carried 7 | 4 7 7 Final Capacity 8 | 8 8 8 Final Carried 8 | 6 8 8 Class Distribution -------------------- 100% | Mutant Dominant Class ---------------- Mutant | -10/Materials Mutant | -9/Materials Resources | -11 -10 -9 ----------- Run | Yrd Mat Mat Matter Collected 997 | 324 394 279 Remotely . | . . . Salvage Created 1152 | 166 511 475 Parts 80 | 10 38 32 Haulers Intercepted 2 | . 2 . Recyclers Shooed 1 | . . 1 Parts Field Recycled . | . . . Retrieved Matter . | . . . Parts Self-Destructed . | . . . Prevented . | . . . Kills | -11 -10 -9 ------- Run | Yrd Mat Mat Combat Hostiles Destroyed 23 | . 13 10 Guns 23 | . 13 10 Classes Destroyed 8 | 2 5 1 Worker 1 | . 1 . Tunneler 4 | 4 . . Hauler 2 | . 2 . Recycler 2 | 1 . 1 Watcher 2 | . 1 1 Swarmer 9 | . 6 3 Grunt 12 | . 7 5 Sentry 2 | . . 2 Best Kill Streak 3 | 2 3 3 Combat Bots Only 3 | . 3 3 Max Kills in Single Turn 2 | 1 2 1 Gunslinging 1 | . 1 . Exploded . | . . . Melee . | . . . Uniques/NPCs Destroyed . | . . . Combat | -11 -10 -9 -------- Run | Yrd Mat Mat Hostile Shots Fired 135 | . 78 57 Missed 44 | . 15 29 Damage Taken 1027 | . 660 367 Core 200 | . 94 106 Absorbed by Shields . | . . . Regen/Repaired (Parts) 98 | . . 98 Core Remaining (%) 81 | 100 62 . Volleys Fired 116 | 11 68 37 Largest 2 | 2 2 2 Hottest 40 | 40 40 40 Shots Fired 233 | 22 137 74 Gun 233 | 22 137 74 Cannon . | . . . Launcher . | . . . Special . | . . . Kinetic 233 | 22 137 74 Thermal . | . . . Explosive . | . . . Electromagnetic . | . . . Robot Hit Streak 9 | 4 8 9 Robot Miss Streak 8 | 2 8 2 Penetration Max . | . . . Secondary Targets 5 | . 2 3 Max Gunslinging Chain 1 | . 1 1 Shots Hit Robots 130 | 11 70 49 Core Hits 54 | 6 27 21 Critical Kills . | . . . Critical Parts Destroyed . | . . . Critical Strikes . | . . . Melee Attacks . | . . . Impact . | . . . Slashing . | . . . Piercing . | . . . Sneak Attacks . | . . . Combat Hostiles . | . . . Follow-up Attacks . | . . . Damage Inflicted 1672 | 136 887 649 Guns 1672 | 136 887 649 Cannons . | . . . Explosions . | . . . Melee . | . . . Ramming . | . . . Kinetic 1672 | 136 887 649 Thermal . | . . . Explosive . | . . . Electromagnetic . | . . . Impact . | . . . Slashing . | . . . Piercing . | . . . Highest Corruption 3 | . 3 . Average Corruption 2 | . 2 . Corruption Purged . | . . . Corruption Blocked . | . . . Effects 2 | . 2 . Message Errors 1 | . 1 . Misfires 1 | . 1 . Overload Shots . | . . . Overflow Damage . | . . . Projectiles . | . . . Explosions . | . . . Melee . | . . . Knockbacks . | . . . Impact . | . . . Kinetic . | . . . Secondary . | . . . Self-Inflicted Damage . | . . . Shots . | . . . Rammed . | . . . Targets Rammed . | . . . Kicked . | . . . Crushed . | . . . Highest Temperature 33 | . 33 . Average Temperature 11 | . 11 . Received Heat Transfer 450 | . 306 144 Siege Activations . | . . . Robots Corrupted . | . . . Combat Hostiles . | . . . Parts Fried . | . . . Impact Corruptions . | . . . Robots Melted . | . . . Combat Hostiles . | . . . Parts Melted . | . . . Heat Transferred . | . . . Parts Sabotaged . | . . . Parts Stolen . | . . . Parts Stripped . | . . . Power Chain Reactions . | . . . Alert | -11 -10 -9 ------- Run | Yrd Mat Mat Peak Influence 360 | 25 241 360 Initial 62 | . 16 62 Average 137 | 9 137 188 Maximum Alert Level 1 | . 1 1 Low Security (%) 75 | 100 72 72 Level 1 24 | . 27 27 Level 2 . | . . . Level 3 . | . . . Level 4 . | . . . Level 5 . | . . . High Security . | . . . Max Security . | . . . Squads Dispatched 3 | . 2 1 Investigation 1 | . . 1 Extermination . | . . . Reinforcement 2 | . 2 . Assault . | . . . Garrison . | . . . Intercept . | . . . Searches Triggered . | . . . Construction Impeded . | . . . Haulers Reinforced . | . . . Active Scanning Responses . | . . . Cargo Convoy Interrupts . | . . . Stealth | -11 -10 -9 --------- Run | Yrd Mat Mat Distress Signals 5 | . 3 2 Communications Jammed . | . . . Distress Signals . | . . . Times Spotted 36 | . 24 12 Peak Tracking Total 6 | . 6 5 Tactical Retreats 3 | . 2 1 Traps | -11 -10 -9 ------- Run | Yrd Mat Mat Traps Triggered 3 | . 2 1 Indirectly . | . . . Trap Hack Attempts . | . . . Triggered . | . . . Disarmed . | . . . Reprogrammed . | . . . Reused . | . . . Traps Extracted . | . . . Installed . | . . . Triggered . | . . . Machines | -11 -10 -9 ---------- Run | Yrd Mat Mat Machines Disabled . | . . . Max in Single Turn . | . . . Machines Repaired . | . . . Machines Dismantled . | . . . Machines Sabotaged . | . . . Overloaded Fab Kills . | . . . Hacking | -11 -10 -9 --------- Run | Yrd Mat Mat Machines Accessed 9 | . 5 4 Terminals 8 | . 5 3 Fabricators . | . . . Repair Stations 1 | . . 1 Recycling Units . | . . . Scanalyzers . | . . . Garrison Access . | . . . Total Hacks 22 | . 11 11 Successful 7 | . 3 4 Failed 15 | . 8 7 Catastrophic 1 | . 1 . Database Lockouts . | . . . Manual 8 | . 7 1 Terminals 20 | . 11 9 Fabricators . | . . . Repair Stations 2 | . . 2 Recycling Units . | . . . Scanalyzers . | . . . Garrison Access . | . . . Terminal Hacks 5 | . 3 2 Robot Analysis 1 | . 1 . Terminal Index 1 | . . 1 Alert Level 2 | . 2 . Locate Traps 1 | . . 1 Fabricator Hacks . | . . . Repair Station Hacks 2 | . . 2 Scan Component 1 | . . 1 Repair 1 | . . 1 Recycling Unit Hacks . | . . . Scanalyzer . | . . . Garrison Access Hacks . | . . . Unauthorized Hacks . | . . . Terminals . | . . . Fabricators . | . . . Repair Stations . | . . . Recycling Units . | . . . Scanalyzers . | . . . Garrison Access . | . . . Data Cores Recovered . | . . . Used . | . . . Hacking Detections 9 | . 5 4 Full Trace Events 2 | . 1 1 Feedback Events . | . . . Feedback Blocked . | . . . Robot Schematics Acquired . | . . . Robots Built . | . . . Authchips . | . . . Time . | . . . Total Robot Build Rating . | . . . Part Schematics Acquired . | . . . Parts Built . | . . . Authchips . | . . . Time . | . . . Total Part Build Rating . | . . . Parts Repaired 1 | . . 1 Time 26 | . . 26 Parts Recycled . | . . . Recycled Matter . | . . . Retrieved Matter . | . . . Retrieved Components . | . . . Parts Scanalyzed . | . . . Part Schematics Acquired . | . . . Parts Damaged . | . . . Bothacking | -11 -10 -9 ------------ Run | Yrd Mat Mat Used RIF Installer . | . . . Robots Hacked . | . . . Non-combat . | . . . Combat . | . . . Robot Hacks Applied . | . . . Relay Couplers Released . | . . . Fabnet Peak Effective % . | . . . Robots Rewired . | . . . Allies Hacked . | . . . Hacks Repelled . | . . . Allies | -11 -10 -9 -------- Run | Yrd Mat Mat Total Allies . | . . . Largest Group . | . . . Highest-Rated Group . | . . . Highest-Rated Ally . | . . . Total Orders . | . . . Ally Attacks . | . . . Total Damage . | . . . Kills . | . . . Allies Corrupted . | . . . Allies Melted . | . . . Intel | -11 -10 -9 ------- Run | Yrd Mat Mat Robot Analysis Total 1 | . 1 . Derelict Logs Recovered . | . . . Drone Launches . | . . . Drone Recoveries . | . . . Exploration | -11 -10 -9 ------------- Run | Yrd Mat Mat Turns Passed 1471 | 153 939 379 Spaces Moved 703 | 85 509 109 Core 6 | 6 . . Treads . | . . . Legs 373 | 74 299 . Wheels 324 | 5 210 109 Hover . | . . . Flight . | . . . Fastest Speed 50 | 50 95 100 Average Speed 114 | 119 117 100 Slowest Speed 190 | 190 190 100 Overloaded Moves . | . . . Propulsion Burnouts . | . . . Robots Hopped . | . . . Cave-ins Triggered . | . . . Exploration Rate (%) 33 | 5 79 16 Regions Visited 2 Branch Regions . Pre-discovered Areas . | . . . Known Exits Taken . | . . . Unknown Exits Taken 2 | 1 1 . Scrap Searched . | . . . Spaces Dug . | . . . Terrain Destroyed . | . . . Melee . | . . . Projectile . | . . . AOE . | . . . Terrain Rammed . | . . . Walls Destroyed . | . . . Machines Disabled . | . . . Actions | -11 -10 -9 --------- Run | Yrd Mat Mat Total 1128 | 110 715 303 Wait 275 | 1 126 148 Move 701 | 84 508 109 Hop . | . . . Pick Up 14 | 6 6 2 Fast Attach 12 | 7 1 4 Attach 3 | . 1 2 Detach . | . . . Swap 3 | 1 2 . Drop 4 | . 3 1 Fire 116 | 11 68 37 Melee . | . . . Ram . | . . . Kick . | . . . Crush . | . . . Escape Stasis . | . . . Rewire . | . . . Trap . | . . . Miscellaneous . | . . . Route ------- -11/Scrapyard -10/Materials (discovered 4 exits: *Mat x3 / [*Min]) -9/Materials History --------- Turn | Location | Event 7 | -11/Scrapyard | Discovered new exit (range 16) 154 | -11/Scrapyard | Entered Materials 228 | -10/Materials | Discovered new exit (range 11) 318 | -10/Materials | Build established: Mutant 334 | -10/Materials | Discovered new exit (range 16) 388 | -10/Materials | Discovered new exit (range 16) 874 | -10/Materials | Discovered new exit (range 10) 1093 | -10/Materials | Entered another Materials area 1093 | -9/Materials | Evolved 2 slots: Propulsion x1, Utility x1 1127 | -9/Materials | Repaired Assault Rifle 1472 | -9/Materials | Self-destructed Last Messages --------------- 01412_ G-34 Mercenary destroyed. 01414_ K-01 Serf collects debris. 01417_ R-06 Scavenger collects Heat Sink. 01418_ K-01 Serf collects debris. 01420_ R-06 Scavenger collects Heat Sink. 01421_ K-01 Serf collects debris. 01431_ Lgt. Ion Engine destroyed. 01434_ K-01 Serf collects debris. 01439_ G-47 Trooper destroyed. 01439_ Switching to secondary target: G-34 Mercenary. 01441_ K-01 Serf collects debris. 01442_ G-34 Mercenary destroyed. 01444_ K-01 Serf collects debris. 01447_ Acquired Ion Engine. 01450_ Acquired 31 matter. 01454_ K-01 Serf collects debris. 01463_ Connecting with Terminal... 01463_ ALERT: Suspicious activity at Terminal M005. Dispatching Investigation squad. Map ----- +----------------------------------------------------+ | ??????????????????????????# [ | | ??????????????????????????# | | ??????????????????????????# | | ??????????????????????????#####+ | | ???????????????????????###### | | ???????????????????????# # | | ???????????????????????# + ^ | | ???????????????????????# # ^^ | | ???????????????????????# # | | ???????????????????????# ## | | ???????????????????????# ## | | ??????????# ???????????# ## | | ??????????# ??????????# ## | | ??????????# ?????????# ## | | ??????????# ############+## | | ????????### | | ?????? # | | ?????? # T | | ????? # """ #### | | ????""" # """ #??###+ | | ?? """"" + """ #?????? | | ?# """"" # = = #?????? | | ?# """"" # =%%! #?????? | | ??? """ # """ !! #?????? | | ????? # """[ !!% #?????? | | ??????#@#?# """ !%! #?????? | | ??????# #?# #?????? | | ??????# #?# #?????? | | ??????# #?# ######## ###?????? | | ?????## ### #??????# #???????? | | ?????# ####???# #???????? | | ??#### #???? ???????? | | ??#""" #????%[???????? | | ??#"R #????[=???????? | | ??#""" #????###??????? | | ??#""" "T" #?????????????? | | ??#### ????????? | | ?????# ##########???????? | | ?????###+## #????????????????? | | ??????????# ???????????????? | | ??????????+ ??????????????? | | ??????????# """"?????????????? | | ??????????# """"?????????????? | | ???????????# ""???????????????? | | ???????????? "????????????????? | | ???????????? "????????????????? | | ???????????? ??????????????????? | | ???????????????????????????????? | | ???????????????????????????????? | | ???????????????????????????????? | +----------------------------------------------------+ Best States ------------- Heat Dissipation 28 Energy Generation 10 Energy Capacity 250 Matter Stores 300 Matter Capacity 300 Sight Range 16 Terrain Scan Density 10 Evasion (%) 55 Targeting Accuracy 5 Recoil Reduction 2 Item Schematics ----------------- None Robot Schematics ------------------ None Fabricated ------------ Nothing Alien Tech Used ----------------- None Achievements -------------- None Challenges ------------ None Game ------ Seed SniperAngularKatana Manual? 0 Play Time 00:14:14 Cumulative 334.3 hours Start 2025.01.08 @ 11:12:43 End 2025.01.08 @ 11:29:01 Sessions 1 Manual Loads 0 Difficulty Rogue Special Mode None Game No. 428 Rogue 424 Adventurer 0 Explorer 4 Win Type - Total 5 Types 4/0/0/1/0/0/0/0/0 Lore% 46 Gallery% 76 Achievement% 63 Wizard Run 0 Options --------- Layout 1 ASCII 1 Keyboard 1 Movement Numpad Keybinds 0 Fullscreen 1 Font 24/Smallcaps Map View 50x35 Zoom Use 0% Tactical HUD 1 Map Filters NONE Filters NONE Steam 1 RUN: a92fc094-a40a-4041-ae3c-5fe86f6e4ede